bitfinex/quotes_SOLUSD_20241005
["timestamp","ask_amount","ask_price","bid_price","bid_amount"]
[1728144842518,7.87768583,142.66,142.62,67.5284]
[1728144842714,6.12496058,142.65,142.62,67.5284]
[1728144842917,1.75272439,142.68,142.62,67.5284]
[1728144843235,6.12470982,142.67,142.62,67.5284]
[1728144843543,7.87743327,142.66,142.62,67.5284]
[1728144843838,6.12470982,142.65,142.62,67.5284]
[1728144844069,1.7528196,142.64,142.6,57.0124]
[1728144844271,1.75295071,142.66,142.6,57.0124]
[1728144844446,6.12402807,142.65,142.6,57.0124]
[1728144844648,8.76363928,142.64,142.59,74.5451]
[1728144845735,8.76363928,142.64,142.6,50.0]
[1728144846747,8.76363928,142.64,142.59,74.5451]
[1728144847852,8.76363928,142.64,142.6,50.0]
[1728144848870,8.76363928,142.64,142.59,74.5451]
[1728144849881,8.76363928,142.64,142.6,50.0]
[1728144850948,8.76363928,142.64,142.59,74.5451]
[1728144852081,8.76363928,142.64,142.6,50.0]
[1728144852869,1.75293928,142.64,142.6,50.0]
[1728144853066,1.75293928,142.64,142.6,57.0122]
[1728144853267,1.75293928,142.64,142.61,50.0]
[1728144854651,16.1124,142.65,142.61,57.012]
[1728144854860,23.776884,142.63,142.59,50.0]
[1728144855062,1.75308415,142.64,142.59,50.0]
[1728144855361,1.75308415,142.64,142.59,57.013]
[1728144856084,23.776884,142.63,142.59,57.013]
[1728144856383,1.75305683,142.62,142.59,57.013]
[1728144856765,1.75305317,142.64,142.59,57.013]
[1728144857078,8.76375317,142.64,142.59,57.013]
[1728144857451,7.0107,142.64,142.59,57.013]
[1728144857653,1.55263484,142.63,142.59,57.013]
[1728144858556,7.0116,142.62,142.58,17.5333]
[1728144858771,1.55263484,142.61,142.58,24.5468]
[1728144859285,1.55263484,142.61,142.59,50.0]
[1728144859778,7.0116,142.62,142.59,50.0]
[1728144860770,7.0116,142.62,142.58,74.5468]
[1728144862698,1.55263484,142.64,142.58,74.5468]
[1728144862985,1.55263484,142.64,142.59,50.0]
[1728144865087,1.55263484,142.64,142.58,74.5468]
[1728144866177,7.0115,142.63,142.58,74.5468]
[1728144866383,1.55263484,142.62,142.58,74.5468]
[1728144869189,1.55263484,142.62,142.59,50.0]
[1728144871287,1.55263484,142.62,142.57,57.0139]
[1728144871584,25.32951884,142.64,142.58,50.0]
[1728144876070,7.0117,142.62,142.58,50.0]
[1728144876273,8.56433484,142.62,142.58,50.0]
[1728144877198,1.55263484,142.61,142.58,50.0]
[1728144878499,7.0121,142.61,142.58,50.0]
[1728144878873,7.0131,142.59,142.56,50.0]
[1728144879416,23.75483484,142.6,142.56,50.0]
[1728144879729,22.2022,142.6,142.56,50.0]
[1728144880014,1.55263484,142.59,142.56,50.0]
[1728144884405,1.55263484,142.59,142.55,74.5516]
[1728144889121,8.56583484,142.59,142.55,74.5516]
[1728144891819,8.56583484,142.59,142.55,24.5516]
[1728144892122,8.56583484,142.59,142.55,74.5516]
[1728144893699,1.55263484,142.59,142.55,67.537]
[1728144893899,1.55263484,142.59,142.55,50.0]
[1728144894108,1.55263484,142.59,142.54,57.0155]
[1728144894615,1.55263484,142.59,142.54,50.0]
[1728144895225,23.776884,142.58,142.53,50.0]
[1728144895405,1.55263484,142.57,142.53,50.0]
[1728144898202,7.0146,142.56,142.53,50.0]
[1728144898408,1.55263484,142.55,142.52,17.5407]
[1728144900025,23.443,142.56,142.52,17.5407]
[1728144900204,13.1847,142.59,142.54,7.0154]
[1728144900410,7.014,142.58,142.54,50.0]
[1728144901043,8.56663484,142.58,142.54,50.0]
[1728144902042,23.776884,142.57,142.53,7.0156]
[1728144902253,7.72383484,142.59,142.54,50.0]
[1728144902540,23.776884,142.58,142.53,57.0156]
[1728144902713,1.55263484,142.57,142.53,57.0156]
[1728144903329,1.55263484,142.57,142.52,7.0165]
[1728144903533,1.55263484,142.57,142.53,50.0]
[1728144903743,25.32951884,142.58,142.53,57.0159]
[1728144905851,25.32951884,142.58,142.52,50.0]
[1728144906052,7.0141,142.57,142.52,57.0164]
[1728144906235,1.55263484,142.56,142.52,57.0164]
[1728144906437,1.55263484,142.56,142.52,64.3117507]
[1728144906826,8.56723484,142.56,142.52,58.69846319]
[1728144907552,1.55263484,142.57,142.52,58.69846319]
[1728144907762,32.34351884,142.58,142.54,57.0154]
[1728144907927,6.1712,142.59,142.55,50.0]
[1728144907928,14.73703484,142.59,142.55,50.0]
[1728144908551,7.0138,142.58,142.54,7.0154]
[1728144908729,1.55263484,142.57,142.54,7.0154]
[1728144909052,1.55263484,142.57,142.53,57.0159]
[1728144909255,1.55263484,142.57,142.53,58.41887711]
[1728144909548,1.55263484,142.57,142.53,57.0159]
[1728144911251,1.55263484,142.57,142.54,50.0]
[1728144911658,8.56643484,142.58,142.54,50.0]
[1728144912043,1.55263484,142.58,142.53,7.0159]
[1728144912350,1.55263484,142.58,142.53,50.0]
[1728144912542,23.776884,142.57,142.53,50.0]
[1728144912737,1.55263484,142.56,142.53,50.0]
[1728144913545,1.55263484,142.56,142.52,74.8359507]
[1728144915265,1.55263484,142.56,142.52,67.5406]
[1728144916153,8.56723484,142.56,142.52,67.5406]
[1728144917951,46.122484,142.55,142.5,57.0174]
[1728144918153,1.55263484,142.54,142.5,57.0174]
[1728144919257,8.56823484,142.54,142.5,57.0174]
[1728144919869,8.56823484,142.54,142.5,7.0174]
[1728144920461,8.56823484,142.54,142.49,74.5627]
[1728144921150,1.55263484,142.54,142.49,50.0]
[1728144921472,1.55263484,142.54,142.48,0.8473054]
[1728144921473,23.776884,142.53,142.48,0.8473054]
[1728144921681,23.776884,142.51,142.48,0.8473054]
[1728144921848,23.776884,142.49,142.48,0.8473054]
[1728144923244,15.3302,142.5,142.48,0.8473054]
[1728144925048,1.55263484,142.49,142.48,0.8473054]
[1728144925874,1.55263484,142.54,142.52,50.0]
[1728144926051,1.55263484,142.55,142.5,67.5429]
[1728144926374,1.55263484,142.55,142.51,57.017]
[1728144926571,1.55263484,142.55,142.5,17.5429]
[1728144926882,8.56783484,142.55,142.5,24.5604]
[1728144927258,1.55263484,142.55,142.51,51.40333186]
[1728144927479,1.55263484,142.55,142.5,17.5429]
[1728144927787,7.0146,142.56,142.51,7.017]
[1728144927957,1.55263484,142.55,142.51,7.017]
[1728144929375,23.776884,142.54,142.5,74.5603]
[1728144930082,25.32951884,142.54,142.5,67.5429]
[1728144930960,32.34521884,142.54,142.5,67.5429]
[1728144931288,23.776884,142.54,142.5,74.5604]
[1728144931458,25.32951884,142.54,142.5,74.5604]
[1728144933885,23.776884,142.55,142.51,8.4201138]
[1728144934086,25.32951884,142.55,142.51,8.4201138]
[1728144934301,25.32951884,142.55,142.51,7.0168]
[1728144934505,16.3117,142.58,142.52,50.0]
[1728144934704,8.56683484,142.57,142.52,57.0164]
[1728144934994,6.09861008,142.56,142.52,57.0164]
[1728144935793,6.09861008,142.56,142.53,50.0]
[1728144936789,7.0165,142.52,142.51,50.0]
[1728144936968,7.0161,142.53,142.49,50.0]
[1728144937173,1.55263484,142.55,142.49,50.0]
[1728144938103,7.0155,142.54,142.5,50.0]
[1728144938389,1.55263484,142.55,142.51,1.40324674]
[1728144938569,7.0146,142.56,142.51,25.96194674]
[1728144938767,1.55263484,142.55,142.51,17.5418]
[1728144938965,7.0151,142.55,142.51,17.5418]
[1728144939186,8.56773484,142.55,142.51,17.5418]
[1728144940297,7.0151,142.55,142.51,67.5418]
[1728144942009,1.55263484,142.54,142.51,67.5418]
[1728144942191,8.56773484,142.55,142.51,67.5418]
[1728144943399,7.0151,142.55,142.51,67.5418]
[1728144943587,1.55263484,142.54,142.51,67.5418]
[1728144944504,8.56773484,142.55,142.51,67.5418]
[1728144945707,7.0151,142.55,142.51,67.5418]
[1728144948796,1.55263484,142.56,142.52,7.0164]
[1728144948797,8.56723484,142.56,142.52,7.0164]
[1728144949099,6.1097336,142.55,142.52,8.41958016]
[1728144949423,8.56723484,142.56,142.52,8.41958016]
[1728144949581,6.11025113,142.55,142.52,8.41958016]
[1728144949906,8.56723484,142.56,142.52,58.41958016]
[1728144950107,6.11048398,142.55,142.52,58.41958016]
[1728144950287,8.56723484,142.56,142.52,58.41958016]
[1728144950484,6.11107494,142.55,142.52,58.41958016]
[1728144950701,6.11108606,142.55,142.52,58.41958016]
[1728144951000,23.776884,142.57,142.53,50.0]
[1728144951200,6.11108107,142.56,142.53,50.0]
[1728144951509,6.11108107,142.55,142.53,50.0]
[1728144951699,25.32951884,142.57,142.53,50.0]
[1728144951898,6.11164547,142.56,142.51,50.0]
[1728144952107,25.32951884,142.57,142.51,50.0]
[1728144952108,7.66428031,142.55,142.51,50.0]
[1728144952288,6.11164547,142.54,142.51,50.0]
[1728144952488,1.55263484,142.56,142.51,57.017]
[1728144952692,6.11143662,142.55,142.51,57.017]
[1728144952991,6.11143662,142.54,142.52,1.4031018]
[1728144953195,1.55263484,142.56,142.51,57.017]
[1728144953400,6.1119297,142.55,142.51,57.017]
[1728144953611,6.1119297,142.54,142.51,57.017]
[1728144953786,1.55263484,142.56,142.51,57.017]
[1728144953990,6.11187609,142.55,142.51,57.017]
[1728144954314,6.11187609,142.54,142.51,50.0]
[1728144954611,23.776884,142.55,142.51,50.0]
[1728144954815,6.11302563,142.54,142.51,50.0]
[1728144955013,6.11302563,142.53,142.51,50.0]
[1728144955313,1.55263484,142.54,142.51,50.0]
[1728144956079,8.56823484,142.54,142.51,50.0]
[1728144956284,8.56823484,142.54,142.49,17.5445]
[1728144956285,7.0162,142.53,142.49,67.5445]
[1728144956514,7.0166,142.52,142.49,50.0]
[1728144956707,8.56923484,142.52,142.49,50.0]
[1728144956908,8.56923484,142.52,142.48,0.8473054]
[1728144957113,7.0166,142.52,142.48,0.8473054]
[1728144957315,8.56963484,142.51,142.48,0.8473054]
[1728144958099,7.0177,142.5,142.48,0.8473054]
[1728144958715,15.1592,142.53,142.48,0.8473054]
[1728144958716,1.55263484,142.52,142.48,50.8473054]
[1728144959022,6.11650839,142.51,142.48,50.8473054]
[1728144959196,1.55263484,142.52,142.48,50.8473054]
[1728144959392,6.11715285,142.51,142.48,0.8473054]
[1728144959598,1.55263484,142.52,142.48,0.8473054]
[1728144959808,6.11714867,142.51,142.48,0.8473054]
[1728144960027,1.55263484,142.52,142.48,2.25076038]
[1728144960196,6.11715049,142.51,142.48,2.25076038]
[1728144960507,23.776884,142.52,142.48,2.25076038]
[1728144960716,6.11845353,142.51,142.48,50.8473054]
[1728144960907,23.776884,142.52,142.48,50.8473054]
[1728144961109,6.11845439,142.51,142.48,50.8473054]
[1728144961325,23.776884,142.52,142.48,50.8473054]
[1728144961506,6.11934677,142.51,142.48,50.8473054]
[1728144961710,25.32951884,142.52,142.48,50.8473054]
[1728144961916,6.11934677,142.51,142.48,50.8473054]
[1728144962106,32.34651884,142.52,142.48,50.8473054]
[1728144962308,6.11901201,142.51,142.48,50.8473054]
[1728144962511,32.34651884,142.52,142.48,50.8473054]
[1728144963013,6.12060438,142.51,142.48,50.8473054]
[1728144963208,32.34651884,142.52,142.48,50.8473054]
[1728144963401,6.12222587,142.51,142.48,50.8473054]
[1728144963609,25.32951884,142.52,142.48,50.8473054]
[1728144963806,13.13875759,142.51,142.48,0.8473054]
[1728144964006,7.017,142.51,142.48,0.8473054]
[1728144964529,6.11978533,142.5,142.48,0.8473054]
[1728144964698,8.56963484,142.51,142.48,0.8473054]
[1728144964901,6.11977228,142.5,142.48,0.8473054]
[1728144965105,8.56963484,142.51,142.48,0.8473054]
[1728144965424,7.017,142.51,142.48,0.8473054]
[1728144965598,6.12076724,142.5,142.48,0.8473054]
[1728144965797,7.017,142.51,142.48,0.8473054]
[1728144966003,6.12076742,142.5,142.48,0.8473054]
[1728144966311,7.017,142.51,142.48,0.8473054]
[1728144966518,6.12172404,142.5,142.48,0.8473054]
[1728144966700,7.017,142.51,142.48,0.8473054]
[1728144967023,6.12194419,142.5,142.48,50.8473054]
[1728144967224,23.776884,142.54,142.49,1.40347503]
[1728144967517,6.12168071,142.53,142.52,50.0]
[1728144967726,6.12168071,142.53,142.52,57.0165]
[1728144967906,6.12168071,142.53,142.52,50.0]
[1728144968108,6.12168071,142.53,142.51,57.017]
[1728144968313,1.55263484,142.58,142.51,57.017]
[1728144968621,6.12369214,142.57,142.51,50.0]
[1728144968928,23.776884,142.55,142.51,50.0]
[1728144969119,6.12369214,142.54,142.5,74.5606]
[1728144969325,6.12369214,142.53,142.5,74.5606]
[1728144969528,6.12430664,142.52,142.51,1.40316254]
[1728144969724,6.12430664,142.52,142.5,67.5431]
[1728144969915,23.776884,142.56,142.5,67.5431]
[1728144970220,23.776884,142.54,142.5,50.0]
[1728144970426,7.67676389,142.53,142.48,50.8473054]
[1728144970604,6.12412905,142.52,142.48,50.8473054]
[1728144970805,1.55263484,142.53,142.48,50.8473054]
[1728144971019,13.1410598,142.52,142.49,1.40336154]
[1728144971336,7.0167,142.52,142.48,50.8473054]
[1728144971925,1.55263484,142.53,142.48,50.8473054]
[1728144972133,7.017,142.51,142.48,50.8473054]
[1728144972425,6.12456442,142.5,142.48,0.8473054]
[1728144972732,7.017,142.51,142.48,2.25078019]
[1728144972910,6.1237263,142.5,142.48,2.25078019]
[1728144973105,7.017,142.51,142.48,2.25078019]
[1728144973301,6.12333614,142.5,142.48,52.25078019]
[1728144973524,7.017,142.51,142.48,52.25078019]
[1728144973712,6.12336481,142.5,142.48,52.25078019]
[1728144973905,7.017,142.51,142.48,52.25078019]
[1728144974209,6.12340976,142.5,142.48,52.25078019]
[1728144974417,7.017,142.51,142.48,52.25078019]
[1728144975503,1.55263484,142.53,142.48,50.8473054]
[1728144975811,6.12312743,142.52,142.48,50.8473054]
[1728144976011,6.12312743,142.51,142.48,50.8473054]
[1728144976205,6.12312743,142.5,142.48,50.8473054]
[1728144976404,23.776884,142.52,142.48,50.8473054]
[1728144976605,6.12288511,142.51,142.48,50.8473054]
[1728144976806,6.12288511,142.5,142.48,50.8473054]
[1728144977002,23.776884,142.53,142.48,50.8473054]
[1728144977206,7.67551081,142.52,142.48,50.8473054]
[1728144977431,6.12287597,142.51,142.48,50.8473054]
[1728144977625,6.12287597,142.5,142.48,2.25078539]
[1728144977830,1.55263484,142.52,142.48,2.25078539]
[1728144978045,23.776884,142.53,142.49,50.0]
[1728144978327,23.776884,142.53,142.49,67.5443]
[1728144978520,25.32951884,142.53,142.49,67.5443]
[1728144978728,25.32951884,142.53,142.49,17.5443]
[1728144979032,7.0171,142.51,142.48,50.8473054]
[1728144979242,7.0166,142.52,142.49,1.40340013]
[1728144979433,7.0166,142.52,142.48,50.8473054]
[1728144980937,7.0166,142.52,142.49,50.0]
[1728144982139,25.32951884,142.53,142.49,50.0]
[1728144982318,23.776884,142.53,142.5,1.40339595]
[1728144982724,15.2231,142.54,142.5,1.40339595]
[1728144983034,15.2231,142.54,142.5,50.0]
[1728144983835,1.55263484,142.56,142.52,50.0]
[1728144984144,1.55263484,142.57,142.53,1.40304481]
[1728144984522,1.55263484,142.57,142.52,50.0]
[1728144984822,1.55263484,142.57,142.53,1.40304727]
[1728144985134,23.776884,142.56,142.53,1.40304727]
[1728144985339,23.776884,142.56,142.52,50.0]
[1728144985824,1.55263484,142.57,142.53,1.40301235]
[1728144986215,7.0151,142.55,142.52,50.0]
[1728144987322,7.0151,142.55,142.53,51.40301484]
[1728144988421,7.0151,142.55,142.53,50.0]
[1728144989839,23.776884,142.57,142.54,1.40300508]
[1728144990224,17.15053484,142.58,142.53,50.0]
[1728144990436,17.15053484,142.58,142.54,50.0]
[1728144991623,17.15053484,142.58,142.53,50.0]
[1728144993644,17.15053484,142.58,142.54,50.0]
[1728144994029,7.015,142.56,142.55,50.0]
[1728144994227,7.015,142.56,142.53,50.0]
[1728144994432,7.0141,142.57,142.53,50.0]
[1728144994635,7.0146,142.56,142.53,50.0]
[1728144995950,7.0146,142.56,142.54,50.0]
[1728144997019,7.0146,142.56,142.53,50.0]
[1728145001127,7.0146,142.56,142.54,50.0]
[1728145001546,23.73304206,142.58,142.54,50.0]
[1728145001749,15.5979,142.58,142.54,50.0]
[1728145001936,23.73304206,142.58,142.54,50.0]
[1728145004052,7.92143484,142.61,142.56,50.0]
[1728145004249,1.55263484,142.61,142.56,50.0]
[1728145005331,23.776884,142.6,142.56,50.0]
[1728145005655,7.0136,142.58,142.56,50.0]
[1728145005870,7.014,142.57,142.54,50.0]
[1728145006559,23.776884,142.58,142.54,50.0]
[1728145006935,7.0144,142.57,142.54,50.0]
[1728145007856,1.55263484,142.57,142.54,50.0]
[1728145008452,1.55263484,142.57,142.53,50.0]
[1728145008966,1.55263484,142.58,142.53,50.0]
[1728145009166,7.015,142.55,142.53,50.0]
[1728145009543,23.776884,142.57,142.53,50.0]
[1728145009748,30.791384,142.57,142.53,50.0]
[1728145009951,7.0145,142.57,142.53,50.0]
[1728145011166,7.0145,142.57,142.55,50.0]
[1728145011375,7.0137,142.58,142.55,50.0]
[1728145012771,1.55263484,142.58,142.55,50.0]
[1728145013770,1.55263484,142.59,142.54,50.0]
[1728145015161,23.776884,142.58,142.54,50.0]
[1728145016667,1.55263484,142.57,142.54,50.0]
[1728145016970,1.55263484,142.57,142.53,50.0]
[1728145017752,23.776884,142.58,142.53,50.0]
[1728145017951,7.0141,142.57,142.54,50.0]
[1728145018672,8.56673484,142.57,142.54,50.0]
[1728145018981,7.0141,142.57,142.54,50.0]
[1728145019153,7.0141,142.57,142.53,50.0]
[1728145019477,1.55263484,142.57,142.53,50.0]
[1728145019775,7.0147,142.56,142.53,50.0]
[1728145019946,7.0147,142.56,142.53,51.40294461]
[1728145020282,7.0147,142.56,142.53,50.0]
[1728145021475,1.55263484,142.6,142.55,50.0]
[1728145021848,1.55263484,142.6,142.53,50.0]
[1728145022349,1.55263484,142.6,142.54,50.0]
[1728145022549,1.55263484,142.6,142.55,1.40284056]
[1728145022768,1.55263484,142.6,142.54,50.0]
[1728145022769,23.776884,142.59,142.54,50.0]
[1728145023074,25.32951884,142.6,142.54,50.0]
[1728145023247,23.776884,142.58,142.54,50.0]
[1728145023455,25.32951884,142.58,142.53,50.0]
[1728145023656,25.32951884,142.58,142.53,51.40292406]
[1728145024066,7.0146,142.56,142.53,50.0]
[1728145024282,7.0146,142.56,142.53,51.40295118]
[1728145024775,7.0146,142.56,142.53,51.40290449]
[1728145025071,7.0142,142.57,142.53,51.40290449]
[1728145025262,7.0142,142.57,142.54,1.40289622]
[1728145025463,7.0142,142.57,142.53,50.0]
[1728145026278,1.55263484,142.57,142.53,50.0]
[1728145027857,1.55263484,142.57,142.52,50.0]
[1728145028174,7.0147,142.56,142.52,50.0]
[1728145028766,7.0147,142.56,142.53,50.0]
[1728145029983,7.0147,142.56,142.52,50.0]
[1728145031279,1.55263484,142.55,142.5,50.0]
[1728145031590,7.016,142.53,142.51,1.4032525]
[1728145031758,7.016,142.53,142.5,50.0]
[1728145031967,7.0155,142.54,142.5,50.0]
[1728145032358,7.0155,142.54,142.5,51.25483245]
[1728145032673,7.0162,142.53,142.5,50.0]
[1728145033059,7.0162,142.53,142.51,1.40329676]
[1728145033265,7.0162,142.53,142.5,50.0]
[1728145034292,7.0162,142.53,142.49,51.40329676]
[1728145034465,7.0166,142.52,142.49,50.0]
[1728145035415,23.776884,142.54,142.48,0.8473054]
[1728145035684,7.0175,142.5,142.48,0.8473054]
[1728145036366,7.018,142.49,142.48,0.8473054]
[1728145036561,32.34751884,142.49,142.48,0.8473054]
[1728145036969,7.018,142.49,142.48,0.8473054]
[1728145037169,8.57063484,142.49,142.48,0.8473054]
[1728145037366,32.34751884,142.49,142.48,0.8473054]
[1728145038494,38.60439884,142.49,142.48,0.8473054]
[1728145038667,24.027864,142.48,142.4,50.0]
[1728145038871,7.0204,142.45,142.4,51.40413978]
[1728145039287,8.57203484,142.47,142.42,50.0]
[1728145039525,23.776884,142.46,142.43,1.40399848]
[1728145040609,7.0194,142.47,142.43,58.42489848]
[1728145040812,7.0194,142.47,142.44,1.25565615]
[1728145041009,15.0438,142.5,142.44,1.25565615]
[1728145041212,15.0438,142.5,142.47,50.0]
[1728145041982,22.0614,142.5,142.47,50.0]
[1728145042591,7.0171,142.51,142.48,50.0]
[1728145043491,1.55263484,142.51,142.46,50.0]
[1728145043698,7.0176,142.5,142.46,50.0]
[1728145045887,7.0176,142.5,142.47,50.0]
[1728145046109,7.0171,142.51,142.47,50.0]
[1728145046488,8.56973484,142.51,142.47,50.0]
[1728145046805,1.55263484,142.51,142.47,50.0]
[1728145047004,7.0175,142.5,142.47,50.0]
[1728145047313,7.017,142.51,142.47,50.0]
[1728145048808,7.017,142.51,142.48,1.40347865]
[1728145049011,7.017,142.51,142.47,50.0]
[1728145049222,7.017,142.51,142.48,1.40350202]
[1728145050187,7.017,142.51,142.47,50.0]
[1728145050619,7.017,142.51,142.48,1.40350201]
[1728145056512,7.0175,142.5,142.47,50.0]
[1728145058216,30.793884,142.52,142.48,1.40356784]
[1728145058523,32.34651884,142.52,142.48,1.40356784]
[1728145058912,7.0171,142.51,142.48,51.40356784]
[1728145060728,7.0171,142.51,142.48,50.0]
[1728145062025,7.0171,142.51,142.49,1.40348573]
[1728145063120,30.793484,142.52,142.48,50.0]
[1728145063420,22.3921,142.53,142.49,1.4034277]
[1728145063725,16.6333,142.56,142.52,50.0]
[1728145064023,23.6479,142.56,142.53,1.40297249]
[1728145064196,23.6479,142.56,142.53,51.40297249]
[1728145064526,23.6479,142.56,142.54,1.40296941]
[1728145064822,16.6333,142.56,142.54,1.40296941]
[1728145065315,16.6333,142.56,142.54,51.40296941]
[1728145065823,7.014,142.57,142.54,51.40296941]
[1728145066437,25.39961841,142.6,142.56,50.0]
[1728145066653,16.6333,142.6,142.56,57.0142]
[1728145066912,23.6459,142.6,142.56,50.0]
[1728145067312,23.6459,142.6,142.57,50.0]
[1728145067910,23.68698934,142.62,142.59,50.0]
[1728145068125,16.6333,142.63,142.6,1.40239709]
[1728145068335,7.0116,142.62,142.6,1.40239709]
[1728145068505,6.0857,142.66,142.61,50.0]
[1728145068506,22.719,142.66,142.61,50.0]
[1728145068707,7.0089,142.68,142.63,57.011]
[1728145068902,7.0089,142.68,142.64,1.4018855]
[1728145069528,7.0089,142.68,142.65,50.0]
[1728145070510,7.0092,142.67,142.65,50.0]
[1728145070737,7.0092,142.67,142.64,50.0]
[1728145073134,7.0087,142.68,142.65,1.40185323]
[1728145073942,7.0087,142.68,142.65,51.40185323]
[1728145076936,7.0087,142.68,142.65,1.40185323]
[1728145077235,7.0087,142.68,142.65,50.0]
[1728145077414,16.6333,142.69,142.67,50.0]
[1728145077739,7.0082,142.69,142.67,50.0]
[1728145078035,7.0073,142.71,142.69,50.0]
[1728145079321,7.0067,142.72,142.68,50.0]
[1728145079818,15.0209,142.73,142.68,50.0]
[1728145080021,7.0067,142.72,142.68,50.0]
[1728145080218,15.0209,142.73,142.71,50.0]
[1728145080219,7.0062,142.73,142.71,50.0]
[1728145080617,1.75167858,142.76,142.71,50.0]
[1728145080945,7.0086,142.69,142.67,50.0]
[1728145081317,7.0086,142.69,142.66,50.0]
[1728145082641,23.776884,142.7,142.64,50.0]
[1728145082939,7.0091,142.68,142.64,50.0]
[1728145083126,7.0091,142.68,142.65,1.40184831]
[1728145083539,7.0092,142.67,142.65,1.40184831]
[1728145084250,7.0092,142.67,142.64,50.0]
[1728145085245,7.0092,142.67,142.65,1.40183172]
[1728145085646,7.0092,142.67,142.64,50.0]
[1728145085824,7.0092,142.67,142.65,1.40183419]
[1728145086020,7.0092,142.67,142.64,50.0]
[1728145086638,7.0092,142.67,142.65,1.40180539]
[1728145086840,7.0092,142.67,142.65,51.40180539]
[1728145087348,7.0092,142.67,142.65,50.0]
[1728145088054,25.52912382,142.7,142.66,1.40179186]
[1728145088225,15.276,142.71,142.66,51.40179186]
[1728145088426,7.0082,142.69,142.66,51.40179186]
[1728145088640,15.276,142.71,142.66,51.40179186]
[1728145088850,7.0077,142.7,142.67,50.0]
[1728145089047,7.0077,142.7,142.68,1.40155607]
[1728145089525,7.0077,142.7,142.67,50.0]
[1728145090644,15.276,142.71,142.67,50.0]
[1728145090944,7.0082,142.69,142.67,50.0]
[1728145091249,7.0082,142.69,142.66,50.0]
[1728145091727,7.0082,142.69,142.67,1.40158784]
[1728145092129,7.0077,142.7,142.67,51.40158784]
[1728145094334,22.2832,142.71,142.69,50.0]
[1728145094655,7.0068,142.72,142.69,50.0]
[1728145095827,7.0068,142.72,142.7,1.40141728]
[1728145096332,7.0068,142.72,142.69,50.0]
[1728145097547,7.0072,142.71,142.68,50.0]
[1728145098630,7.0072,142.71,142.69,50.0]
[1728145098822,7.0062,142.73,142.7,1.4013753]
[1728145099033,7.0057,142.75,142.71,50.0]
[1728145099256,15.276,142.79,142.73,50.0]
[1728145099257,7.0048,142.76,142.73,50.0]
[1728145099470,7.0043,142.77,142.74,1.40093505]
[1728145099670,7.0043,142.77,142.74,51.40093505]
[1728145100566,7.0038,142.78,142.75,50.0]
[1728145100767,6.05691578,142.77,142.76,1.4008225]
[1728145100964,6.05691578,142.77,142.75,50.0]
[1728145101171,7.0038,142.78,142.75,50.0]
[1728145101474,6.05901907,142.77,142.76,1.40079583]
[1728145102172,6.05901907,142.77,142.75,57.0049]
[1728145102342,1.75102808,142.82,142.78,50.0]
[1728145102343,7.0032,142.8,142.78,50.0]
[1728145102541,6.05904911,142.79,142.78,50.0]
[1728145102992,7.0025,142.81,142.78,50.0]
[1728145103170,15.276,142.83,142.78,50.0]
[1728145103476,17.26752416,142.87,142.81,50.0]
[1728145103640,17.26752416,142.87,142.82,51.40009313]
[1728145103641,7.0004,142.85,142.82,51.40009313]
[1728145104166,6.9999,142.86,142.82,51.40009313]
[1728145104870,2.59737677,142.84,142.79,50.0]
[1728145105073,0.8473054,142.84,142.79,50.0]
[1728145105754,23.776884,142.83,142.79,50.0]
[1728145106155,0.8473054,142.84,142.79,50.0]
[1728145106156,7.0018,142.82,142.79,50.0]
[1728145106372,0.8473054,142.84,142.81,50.0]
[1728145106554,7.0022,142.82,142.79,50.0]
[1728145110163,0.8473054,142.84,142.82,50.0]
[1728145110373,0.8473054,142.84,142.83,1.40004825]